fUSD/lending_fUSD_20260514
["ID","MTS","AMOUNT","RATE_DAILY","PERIOD"]
[422262017,1778773860000,-577.18639742,0.00037022,2]
[422262019,1778773860000,-510.40096169,0.00037022,2]
[422262014,1778773860000,-864.46544763,0.00037022,2]
[422262023,1778773860000,-300.0,0.00037022,2]
[422262024,1778773860000,-1094.76341147,0.00037022,2]
[422262030,1778773860000,-1066.9267668,0.00037022,2]
[422262037,1778773860000,-343.9837244,0.00037022,2]
[422262028,1778773860000,-300.0,0.00037022,2]
[422262029,1778773860000,-527.74756033,0.00037022,2]
[422262025,1778773860000,-300.0,0.00037022,2]
[422262026,1778773860000,-492.69539266,0.00037022,2]
[422262031,1778773860000,-893.15010961,0.00037022,2]
[422262032,1778773860000,-726.07109283,0.00037022,2]
[422262035,1778773860000,-300.57306762,0.00037022,2]
[422262036,1778773860000,-949.00925633,0.00037022,2]
[422262040,1778773860000,-1147.19266559,0.00037022,2]
[422262042,1778773860000,-864.46544763,0.00037022,2]
[422262033,1778773860000,-301.79443579,0.00037022,2]
[422262034,1778773860000,-300.0,0.00037022,2]
[422262027,1778773860000,-604.46475032,0.00037022,2]
[422262067,1778773860000,-864.46544763,0.00037022,2]
[422262070,1778773860000,-451.91661156,0.00037022,2]
[422262069,1778773860000,-463.8581435,0.00037022,2]
[422262099,1778773860000,-300.0,0.00037022,2]
[422262100,1778773860000,-300.000001,0.00037022,2]
[422262102,1778773860000,-527.74756033,0.00037022,2]
[422262109,1778773860000,-526.89972735,0.00037022,2]
[422262108,1778773860000,-343.9837244,0.00037022,2]
[422262103,1778773860000,-353.7232261,0.00037022,2]
[422262110,1778773860000,-1146.85439813,0.00037022,2]
[422262106,1778773860000,-401.59336886,0.00037022,2]
[422262104,1778773860000,-893.15010961,0.00037022,2]
[422262107,1778773860000,-300.0,0.00037022,2]
[422262105,1778773860000,-726.07109283,0.00037022,2]
[422262101,1778773860000,-492.69539266,0.00037022,2]
[422262112,1778773860000,-1755.48763153,0.00037022,2]
[422262111,1778773860000,-464.39085571,0.00037022,2]
[422262115,1778773860000,-300.0,0.00037022,2]
[422262121,1778773860000,-309.84439532,0.00037022,2]
[422262119,1778773860000,-300.0,0.00037022,2]
[422262114,1778773860000,-577.01168212,0.00037022,2]
[422262116,1778773860000,-602.61443587,0.00037022,2]
[422262113,1778773860000,-616.76116861,0.00037022,2]
[422262117,1778773860000,-300.00000002,0.00037022,2]
[422262118,1778773860000,-582.71803811,0.00037022,2]
[422262123,1778773860000,-300.0,0.00037022,2]
[422262068,1778773860000,-310.8122113,0.00037022,2]
[422262122,1778773860000,-300.0,0.00037022,2]
[422262098,1778773860000,-1094.76341147,0.00037022,2]
[422262120,1778773860000,-484.1034747,0.00037022,2]
[422262095,1778773860000,-300.0,0.00037022,2]
[422262094,1778773860000,-309.84439532,0.00037022,2]
[422262078,1778773860000,-801.94996659,0.00037022,2]
[422262071,1778773860000,-484.1034747,0.00037022,2]
[422262074,1778773860000,-300.0,0.00037022,2]
[422262075,1778773860000,-1094.76341147,0.00037022,2]
[422262076,1778773860000,-300.0,0.00037022,2]
[422262077,1778773860000,-492.69539266,0.00037022,2]
[422262073,1778773860000,-300.0,0.00037022,2]
[422262080,1778773860000,-1066.9267668,0.00037022,2]
[422262088,1778773860000,-390.35164058,0.00037022,2]
[422262090,1778773860000,-310.8122113,0.00037022,2]
[422262089,1778773860000,-864.46544763,0.00037022,2]
[422262072,1778773860000,-309.84439532,0.00037022,2]
[422262081,1778773860000,-893.15010961,0.00037022,2]
[422262079,1778773860000,-527.74756033,0.00037022,2]
[422262092,1778773860000,-450.12018632,0.00037022,2]
[422262097,1778773860000,-300.0,0.00037022,2]
[422262091,1778773860000,-463.8581435,0.00037022,2]
[422262093,1778773860000,-484.1034747,0.00037022,2]
[422262096,1778773860000,-300.0,0.00037022,2]
[422262083,1778773860000,-301.79443579,0.00037022,2]
[422262086,1778773860000,-343.9837244,0.00037022,2]
[422262085,1778773860000,-566.34399949,0.00037022,2]
[422262087,1778773860000,-526.89972735,0.00037022,2]
[422262082,1778773860000,-726.07109283,0.00037022,2]
[422262084,1778773860000,-300.0,0.00037022,2]
[422262148,1778773861000,-300.34921584,0.00037022,2]
[422262160,1778773861000,-463.85814351,0.00037022,2]
[422262153,1778773861000,-1145.82024991,0.00037022,2]
[422262151,1778773861000,-705.81306273,0.00037022,2]
[422262157,1778773861000,-1755.48763153,0.00037022,2]
[422262152,1778773861000,-599.99999999,0.00037022,2]
[422262150,1778773861000,-342.72387066,0.00037022,2]
[422262154,1778773861000,-309.59330385,0.00037022,2]
[422262156,1778773861000,-300.0,0.00037022,2]
[422262155,1778773861000,-864.21260631,0.00037022,2]
[422262159,1778773861000,-300.0,0.00037022,2]
[422262169,1778773861000,-309.84439532,0.00037022,2]
[422262163,1778773861000,-300.0,0.00037022,2]
[422262168,1778773861000,-484.1034747,0.00037022,2]
[422262161,1778773861000,-300.0,0.00037022,2]
[422262162,1778773861000,-577.01168213,0.00037022,2]
[422262165,1778773861000,-302.66154507,0.00037022,2]
[422262164,1778773861000,-300.0,0.00037022,2]
[422262166,1778773861000,-300.0,0.00037022,2]
[422262172,1778773861000,-300.0,0.00037022,2]
[422262158,1778773861000,-300.0,0.00037022,2]
[422262179,1778773861000,-570.89480356,0.00037022,2]
[422262167,1778773861000,-300.0,0.00037022,2]
[422262149,1778773861000,-300.0,0.00037022,2]
[422262136,1778773861000,-300.0,0.00037022,2]
[422262142,1778773861000,-1066.61966842,0.00037022,2]
[422262170,1778773861000,-300.0,0.00037022,2]
[422262128,1778773861000,-362.37824229,0.00037022,2]
[422262125,1778773861000,-521.9712872,0.00037022,2]
[422262129,1778773861000,-300.0,0.00037022,2]
[422262126,1778773861000,-300.0,0.00037022,2]
[422262124,1778773861000,-300.0,0.00037022,2]
[422262127,1778773861000,-300.54510089,0.00037022,2]
[422262132,1778773861000,-300.0,0.00037022,2]
[422262133,1778773861000,-300.0,0.00037022,2]
[422262131,1778773861000,-300.0,0.00037022,2]
[422262147,1778773861000,-300.0,0.00037022,2]
[422262130,1778773861000,-300.0,0.00037022,2]
[422262146,1778773861000,-301.70878526,0.00037022,2]
[422262139,1778773861000,-604.28857031,0.00037022,2]
[422262138,1778773861000,-656.48013752,0.00037022,2]
[422262135,1778773861000,-300.0,0.00037022,2]
[422262137,1778773861000,-300.0,0.00037022,2]
[422262140,1778773861000,-300.0,0.00037022,2]
[422262144,1778773861000,-726.07109283,0.00037022,2]
[422262143,1778773861000,-893.15010962,0.00037022,2]
[422262145,1778773861000,-300.0,0.00037022,2]
[422262141,1778773861000,-705.79280686,0.00037022,2]
[422262134,1778773861000,-300.0,0.00037022,2]
[422262173,1778773861000,-300.0,0.00037022,2]
[422262177,1778773861000,-300.0,0.00037022,2]
[422262175,1778773861000,-300.0,0.00037022,2]
[422262205,1778773861000,-342.72387066,0.00037022,2]
[422262215,1778773861000,-300.0,0.00037022,2]
[422262206,1778773861000,-526.89972734,0.00037022,2]
[422262204,1778773861000,-949.00925633,0.00037022,2]
[422262207,1778773861000,-599.99999999,0.00037022,2]
[422262209,1778773861000,-1146.85439813,0.00037022,2]
[422262210,1778773861000,-300.0,0.00037022,2]
[422262214,1778773861000,-1755.48763153,0.00037022,2]
[422262211,1778773861000,-309.59330386,0.00037022,2]
[422262212,1778773861000,-300.0,0.00037022,2]
[422262208,1778773861000,-301.01933099,0.00037022,2]
[422262216,1778773861000,-300.0,0.00037022,2]
[422262217,1778773861000,-310.90590822,0.00037022,2]
[422262218,1778773861000,-463.85814349,0.00037022,2]
[422262220,1778773861000,-300.0,0.00037022,2]
[422262222,1778773861000,-301.5934778,0.00037022,2]
[422262219,1778773861000,-300.0,0.00037022,2]
[422262221,1778773861000,-300.0,0.00037022,2]
[422262226,1778773861000,-300.0,0.00037022,2]
[422262223,1778773861000,-300.0,0.00037022,2]
[422262224,1778773861000,-484.1034747,0.00037022,2]
[422262178,1778773861000,-300.0,0.00037022,2]
[422262225,1778773861000,-309.84439532,0.00037022,2]
[422262203,1778773861000,-300.0,0.00037022,2]
[422262200,1778773861000,-300.57306762,0.00037022,2]
[422262213,1778773861000,-864.46544763,0.00037022,2]
[422262198,1778773861000,-301.70878527,0.00037022,2]
[422262176,1778773861000,-1094.76341147,0.00037022,2]
[422262201,1778773861000,-300.0,0.00037022,2]
[422262171,1778773861000,-300.0,0.00037022,2]
[422262174,1778773861000,-592.32202651,0.00037022,2]
[422262181,1778773861000,-300.0,0.00037022,2]
[422262180,1778773861000,-300.0,0.00037022,2]
[422262183,1778773861000,-300.0,0.00037022,2]
[422262184,1778773861000,-300.00000001,0.00037022,2]
[422262186,1778773861000,-300.0,0.00037022,2]
[422262185,1778773861000,-300.0,0.00037022,2]
[422262191,1778773861000,-604.28857032,0.00037022,2]
[422262190,1778773861000,-300.0,0.00037022,2]
[422262182,1778773861000,-300.0,0.00037022,2]
[422262187,1778773861000,-300.0,0.00037022,2]
[422262188,1778773861000,-301.68319089,0.00037022,2]
[422262192,1778773861000,-300.0,0.00037022,2]
[422262189,1778773861000,-492.69539265,0.00037022,2]
[422262193,1778773861000,-527.74756033,0.00037022,2]
[422262194,1778773861000,-1066.9267668,0.00037022,2]
[422262195,1778773861000,-893.15010961,0.00037022,2]
[422262199,1778773861000,-300.0,0.00037022,2]
[422262202,1778773861000,-300.0,0.00037022,2]
[422262196,1778773861000,-726.07109283,0.00037022,2]
[422262197,1778773861000,-300.0,0.00037022,2]
[422262266,1778773862000,-345.24357814,0.00037022,2]
[422262267,1778773862000,-526.89972735,0.00037022,2]
[422262265,1778773862000,-1911.85385746,0.00037022,2]
[422262273,1778773862000,-300.0,0.00037022,2]
[422262262,1778773862000,-300.0,0.00037022,2]
[422262259,1778773862000,-300.57306762,0.00037022,2]
[422262252,1778773862000,-1066.9267668,0.00037022,2]
[422262261,1778773862000,-300.0,0.00037022,2]
[422262258,1778773862000,-300.0,0.00037022,2]
[422262260,1778773862000,-300.8507593,0.00037022,2]
[422262264,1778773862000,-949.00925634,0.00037022,2]
[422262263,1778773862000,-300.0,0.00037022,2]
[422262268,1778773862000,-301.00526981,0.00037022,2]
[422262278,1778773862000,-467.36661198,0.00037022,2]
[422262270,1778773862000,-300.0,0.00037022,2]
[422262269,1778773862000,-309.59330386,0.00037022,2]
[422262272,1778773862000,-301.00013029,0.00037022,2]
[422262285,1778773862000,-300.0,0.00037022,2]
[422262280,1778773862000,-301.89675444,0.00037022,2]
[422262275,1778773862000,-300.0,0.00037022,2]
[422262276,1778773862000,-417.38652997,0.00037022,2]
[422262274,1778773862000,-300.0,0.00037022,2]
[422262277,1778773862000,-300.0,0.00037022,2]
[422262281,1778773862000,-300.0,0.00037022,2]
[422262283,1778773862000,-309.84439532,0.00037022,2]
[422262257,1778773862000,-300.0,0.00037022,2]
[422262271,1778773862000,-864.46544763,0.00037022,2]
[422262256,1778773862000,-304.15566314,0.00037022,2]
[422262227,1778773862000,-301.64773678,0.00037022,2]
[422262253,1778773862000,-893.41080805,0.00037022,2]
[422262279,1778773862000,-301.87953155,0.00037022,2]
[422262228,1778773862000,-300.0,0.00037022,2]
[422262236,1778773862000,-300.0,0.00037022,2]
[422262237,1778773862000,-300.0,0.00037022,2]
[422262229,1778773862000,-300.0,0.00037022,2]
[422262230,1778773862000,-302.68793268,0.00037022,2]
[422262232,1778773862000,-1094.76341147,0.00037022,2]
[422262233,1778773862000,-300.0,0.00037022,2]
[422262231,1778773862000,-301.07375087,0.00037022,2]
[422262235,1778773862000,-300.0,0.00037022,2]
[422262238,1778773862000,-300.00000001,0.00037022,2]
[422262234,1778773862000,-300.0,0.00037022,2]
[422262255,1778773862000,-726.07109283,0.00037022,2]
[422262239,1778773862000,-300.00000001,0.00037022,2]
[422262242,1778773862000,-300.0,0.00037022,2]
[422262240,1778773862000,-300.0,0.00037022,2]
[422262248,1778773862000,-300.0,0.00037022,2]
[422262249,1778773862000,-300.0,0.00037022,2]
[422262246,1778773862000,-300.00000001,0.00037022,2]
[422262243,1778773862000,-300.0,0.00037022,2]
[422262244,1778773862000,-300.0,0.00037022,2]
[422262250,1778773862000,-527.74756033,0.00037022,2]
[422262247,1778773862000,-604.28857032,0.00037022,2]
[422262245,1778773862000,-300.0,0.00037022,2]
[422262254,1778773862000,-313.04691013,0.00037022,2]
[422262251,1778773862000,-300.0,0.00037022,2]
[422262241,1778773862000,-492.69539266,0.00037022,2]
[422262282,1778773862000,-484.1034747,0.00037022,2]
[422262337,1778773862000,-300.0,0.00037022,2]
[422262286,1778773862000,-300.0,0.00037022,2]
[422262315,1778773862000,-334.49459295,0.00037022,2]
[422262320,1778773862000,-1929.26121002,0.00037022,2]
[422262321,1778773862000,-468.81869403,0.00037022,2]
[422262316,1778773862000,-376.10739468,0.00037022,2]
[422262317,1778773862000,-301.9516467,0.00037022,2]
[422262323,1778773862000,-301.0351389,0.00037022,2]
[422262322,1778773862000,-530.83062898,0.00037022,2]
[422262324,1778773862000,-300.0,0.00037022,2]
[422262325,1778773862000,-300.0,0.00037022,2]
[422262333,1778773862000,-300.0,0.00037022,2]
[422262326,1778773862000,-775.04010663,0.00037022,2]
[422262329,1778773862000,-484.1034747,0.00037022,2]
[422262319,1778773862000,-300.0,0.00037022,2]
[422262328,1778773862000,-300.0,0.00037022,2]
[422262330,1778773862000,-309.84439532,0.00037022,2]
[422262331,1778773862000,-300.0,0.00037022,2]
[422262327,1778773862000,-451.91661156,0.00037022,2]
[422262334,1778773862000,-300.0,0.00037022,2]
[422262338,1778773862000,-300.0,0.00037022,2]
[422262336,1778773862000,-300.98824775,0.00037022,2]
[422262335,1778773862000,-1102.02052102,0.00037022,2]
[422262339,1778773862000,-300.93689844,0.00037022,2]
[422262342,1778773862000,-300.0,0.00037022,2]
[422262341,1778773862000,-549.20438869,0.00037022,2]
[422262340,1778773862000,-300.0,0.00037022,2]
[422262284,1778773862000,-302.57398779,0.00037022,2]
[422262332,1778773862000,-301.07575806,0.00037022,2]
[422262310,1778773862000,-726.07109283,0.00037022,2]
[422262343,1778773862000,-492.69539267,0.00037022,2]
[422262314,1778773862000,-300.0,0.00037022,2]
[422262291,1778773862000,-300.00000001,0.00037022,2]
[422262290,1778773862000,-300.0,0.00037022,2]
[422262289,1778773862000,-1094.76341147,0.00037022,2]
[422262288,1778773862000,-300.0,0.00037022,2]
[422262292,1778773862000,-302.0054514,0.00037022,2]
[422262287,1778773862000,-300.0,0.00037022,2]
[422262296,1778773862000,-300.0,0.00037022,2]
[422262318,1778773862000,-871.82424534,0.00037022,2]
[422262297,1778773862000,-300.0,0.00037022,2]
[422262295,1778773862000,-300.0,0.00037022,2]
[422262294,1778773862000,-300.0,0.00037022,2]
[422262299,1778773862000,-492.69539266,0.00037022,2]
[422262298,1778773862000,-300.0,0.00037022,2]
[422262293,1778773862000,-301.00520869,0.00037022,2]
[422262301,1778773862000,-300.0,0.00037022,2]
[422262308,1778773862000,-300.0,0.00037022,2]
[422262311,1778773862000,-300.0,0.00037022,2]
[422262313,1778773862000,-524.90655902,0.00037022,2]
[422262312,1778773862000,-301.89255312,0.00037022,2]
[422262307,1778773862000,-527.74756033,0.00037022,2]
[422262309,1778773862000,-893.41080805,0.00037022,2]
[422262306,1778773862000,-300.0,0.00037022,2]
[422262302,1778773862000,-300.0,0.00037022,2]
[422262304,1778773862000,-300.0,0.00037022,2]
[422262303,1778773862000,-300.0,0.00037022,2]
[422262300,1778773862000,-300.12689388,0.00037022,2]
[422262305,1778773862000,-300.0,0.00037022,2]
[422262379,1778773863000,-300.0,0.00037022,2]
[422262384,1778773863000,-309.84439532,0.00037022,2]
[422262382,1778773863000,-357.50021741,0.00037022,2]
[422262381,1778773863000,-302.00387365,0.00037022,2]
[422262380,1778773863000,-300.25410495,0.00037022,2]
[422262373,1778773863000,-301.64770421,0.00037022,2]
[422262374,1778773863000,-611.5646577,0.00037022,2]
[422262377,1778773863000,-305.90498067,0.00037022,2]
[422262378,1778773863000,-972.6613395,0.00037022,2]
[422262376,1778773863000,-477.93502198,0.00037022,2]
[422262375,1778773863000,-300.85918204,0.00037022,2]
[422262383,1778773863000,-300.0,0.00037022,2]
[422262399,1778773863000,-309.84439532,0.00037022,2]
[422262396,1778773863000,-300.0,0.00037022,2]
[422262388,1778773863000,-300.91766202,0.00037022,2]
[422262385,1778773863000,-300.0,0.00037022,2]
[422262391,1778773863000,-300.0,0.00037022,2]
[422262389,1778773863000,-301.93193659,0.00037022,2]
[422262390,1778773863000,-300.25265261,0.00037022,2]
[422262387,1778773863000,-300.0,0.00037022,2]
[422262394,1778773863000,-300.0,0.00037022,2]
[422262395,1778773863000,-301.47244759,0.00037022,2]
[422262392,1778773863000,-301.92307462,0.00037022,2]
[422262393,1778773863000,-309.84439532,0.00037022,2]
[422262371,1778773863000,-300.00000001,0.00037022,2]
[422262386,1778773863000,-300.0,0.00037022,2]
[422262369,1778773863000,-369.42866269,0.00037022,2]
[422262352,1778773863000,-300.0,0.00037022,2]
[422262366,1778773863000,-300.0,0.00037022,2]
[422262401,1778773863000,-302.2260458,0.00037022,2]
[422262345,1778773863000,-300.0,0.00037022,2]
[422262344,1778773863000,-300.0,0.00037022,2]
[422262357,1778773863000,-301.02243924,0.00037022,2]
[422262347,1778773863000,-327.77861778,0.00037022,2]
[422262346,1778773863000,-300.0,0.00037022,2]
[422262349,1778773863000,-302.62252375,0.00037022,2]
[422262348,1778773863000,-300.0,0.00037022,2]
[422262351,1778773863000,-726.07109283,0.00037022,2]
[422262356,1778773863000,-301.00992014,0.00037022,2]
[422262353,1778773863000,-300.0,0.00037022,2]
[422262354,1778773863000,-301.88441068,0.00037022,2]
[422262350,1778773863000,-300.79371481,0.00037022,2]
[422262355,1778773863000,-1911.04728991,0.00037022,2]
[422262358,1778773863000,-455.59762567,0.00037022,2]
[422262361,1778773863000,-461.37962328,0.00037022,2]
[422262362,1778773863000,-484.1034747,0.00037022,2]
[422262360,1778773863000,-300.0,0.00037022,2]
[422262359,1778773863000,-300.0,0.00037022,2]
[422262363,1778773863000,-309.84439532,0.00037022,2]
[422262364,1778773863000,-301.0949555,0.00037022,2]
[422262365,1778773863000,-300.0,0.00037022,2]
[422262368,1778773863000,-300.0,0.00037022,2]
[422262367,1778773863000,-301.01161703,0.00037022,2]
[422262370,1778773863000,-492.69539267,0.00037022,2]
[422262372,1778773863000,-300.0,0.00037022,2]
[422262402,1778773863000,-300.0,0.00037022,2]
[422262416,1778773863000,-301.23974286,0.00037022,2]
[422262405,1778773863000,-300.0,0.00037022,2]
[422262428,1778773863000,-1062.333433,0.00037022,7]
[422262432,1778773863000,-892.364592,0.00037022,7]
[422262433,1778773863000,-892.364592,0.00037022,7]
[422262430,1778773863000,-1062.333433,0.00037022,7]
[422262437,1778773863000,-321.442549,0.00037022,7]
[422262448,1778773863000,-787.643953,0.00037022,7]
[422262441,1778773863000,-882.070116,0.00037022,7]
[422262438,1778773863000,-321.442549,0.00037022,7]
[422262436,1778773863000,-892.364592,0.00037022,7]
[422262447,1778773863000,-503.537667,0.00037022,7]
[422262439,1778773863000,-321.442549,0.00037022,7]
[422262440,1778773863000,-882.070116,0.00037022,7]
[422262442,1778773863000,-882.070116,0.00037022,7]
[422262446,1778773863000,-787.643953,0.00037022,7]
[422262444,1778773863000,-503.537667,0.00037022,7]
[422262443,1778773863000,-882.070116,0.00037022,7]
[422262445,1778773863000,-503.537667,0.00037022,7]
[422262449,1778773863000,-503.537667,0.00037022,7]
[422262453,1778773863000,-2019.115,0.00037034,2]
[422262455,1778773863000,-250.0,0.00037041,7]
[422262451,1778773863000,-787.643953,0.00037022,7]
[422262454,1778773863000,-2633.7148,0.00037034,2]
[422262452,1778773863000,-2009.9888,0.00037034,2]
[422262456,1778773863000,-250.0,0.00037041,7]
[422262457,1778773863000,-500.0,0.00037083,5]
[422262431,1778773863000,-151.0,0.00037022,7]
[422262429,1778773863000,-1062.333433,0.00037022,7]
[422262400,1778773863000,-300.0,0.00037022,2]
[422262426,1778773863000,-425.186581,0.00037022,7]
[422262397,1778773863000,-300.0,0.00037022,2]
[422262404,1778773863000,-413.26012674,0.00037022,2]
[422262408,1778773863000,-346.01528659,0.00037022,2]
[422262403,1778773863000,-646.66025869,0.00037022,2]
[422262398,1778773863000,-300.0,0.00037022,2]
[422262409,1778773863000,-300.0,0.00037022,2]
[422262406,1778773863000,-300.0,0.00037022,2]
[422262425,1778773863000,-425.186581,0.00037022,7]
[422262421,1778773863000,-151.0,0.00037022,7]
[422262411,1778773863000,-300.0,0.00037022,2]
[422262422,1778773863000,-195.010599,0.00037022,7]
[422262410,1778773863000,-300.0,0.00037022,2]
[422262413,1778773863000,-1094.29459014,0.00037022,2]
[422262407,1778773863000,-300.0,0.00037022,2]
[422262412,1778773863000,-301.22898655,0.00037022,2]
[422262414,1778773863000,-300.00000001,0.00037022,2]
[422262423,1778773863000,-425.186581,0.00037022,7]
[422262427,1778773863000,-1062.333433,0.00037022,7]
[422262435,1778773863000,-321.442549,0.00037022,7]
[422262424,1778773863000,-425.186581,0.00037022,7]
[422262434,1778773863000,-892.364592,0.00037022,7]
[422262419,1778773863000,-300.0,0.00037022,2]
[422262418,1778773863000,-1094.29459016,0.00037022,2]
[422262415,1778773863000,-300.0,0.00037022,2]
[422262420,1778773863000,-465.24294727,0.00037022,2]
[422262450,1778773863000,-787.643953,0.00037022,7]
[422262417,1778773863000,-300.0,0.00037022,2]
[422262496,1778773864000,-157.0,0.00037149,3]
[422262505,1778773864000,-6477.70817415,0.0003731,2]
[422262495,1778773864000,-211.54,0.00037147,120]
[422262494,1778773864000,-200.0,0.00037132,2]
[422262493,1778773864000,-151.0,0.000371,7]
[422262492,1778773864000,-151.0,0.000371,7]
[422262490,1778773864000,-254.173726,0.000371,7]
[422262486,1778773864000,-6069.126935,0.000371,7]
[422262488,1778773864000,-254.173726,0.000371,7]
[422262497,1778773864000,-2633.7148,0.00037166,2]
[422262491,1778773864000,-151.0,0.000371,7]
[422262509,1778773864000,-152.0,0.00037427,11]
[422262512,1778773864000,-2019.115,0.00037497,2]
[422262504,1778773864000,-10072.66,0.00037302,30]
[422262502,1778773864000,-333.94,0.00037301,2]
[422262500,1778773864000,-5000.0,0.00037234,2]
[422262510,1778773864000,-2633.7148,0.00037431,2]
[422262499,1778773864000,-2009.9888,0.00037202,2]
[422262508,1778773864000,-2009.9888,0.00037371,2]
[422262501,1778773864000,-2633.7148,0.00037298,2]
[422262498,1778773864000,-2019.115,0.00037188,2]
[422262506,1778773864000,-556.0,0.00037315,15]
[422262507,1778773864000,-2019.115,0.00037343,2]
[422262511,1778773864000,-326.77,0.00037436,120]
[422262489,1778773864000,-254.173726,0.000371,7]
[422262503,1778773864000,-246.51,0.00037301,2]
[422262487,1778773864000,-254.173726,0.000371,7]
[422262467,1778773864000,-1565.602577,0.000371,7]
[422262481,1778773864000,-920.886244,0.000371,7]
[422262522,1778773864000,-359.48559106,0.00037539,5]
[422262460,1778773864000,-402.640916,0.000371,7]
[422262458,1778773864000,-234126.06780192,0.000371,2]
[422262459,1778773864000,-402.640916,0.000371,7]
[422262461,1778773864000,-402.640916,0.000371,7]
[422262471,1778773864000,-591.875821,0.000371,7]
[422262462,1778773864000,-402.640916,0.000371,7]
[422262463,1778773864000,-151.0,0.000371,7]
[422262472,1778773864000,-591.875821,0.000371,7]
[422262470,1778773864000,-1565.602577,0.000371,7]
[422262469,1778773864000,-1565.602577,0.000371,7]
[422262468,1778773864000,-1565.602577,0.000371,7]
[422262466,1778773864000,-151.0,0.000371,7]
[422262464,1778773864000,-151.0,0.000371,7]
[422262465,1778773864000,-151.0,0.000371,7]
[422262473,1778773864000,-591.875821,0.000371,7]
[422262474,1778773864000,-591.875821,0.000371,7]
[422262476,1778773864000,-413.199868,0.000371,7]
[422262477,1778773864000,-413.199868,0.000371,7]
[422262478,1778773864000,-413.199868,0.000371,7]
[422262484,1778773864000,-6069.126935,0.000371,7]
[422262485,1778773864000,-6069.126935,0.000371,7]
[422262482,1778773864000,-920.886244,0.000371,7]
[422262480,1778773864000,-920.886244,0.000371,7]
[422262479,1778773864000,-920.886244,0.000371,7]
[422262483,1778773864000,-6069.126935,0.000371,7]
[422262514,1778773864000,-500.0,0.000375,120]
[422262475,1778773864000,-413.199868,0.000371,7]
[422262517,1778773864000,-3760.08,0.000375,60]
[422262545,1778773864000,-310.51281345,0.00037753,120]
[422262547,1778773864000,-150.0,0.0003778,2]
[422262548,1778773864000,-52960.60942566,0.000378,5]
[422262546,1778773864000,-29020.47693801,0.00037777,6]
[422262549,1778773864000,-1000.0,0.000378,7]
[422262552,1778773864000,-1000.0,0.000378,7]
[422262558,1778773864000,-1000.0,0.000378,7]
[422262561,1778773864000,-1000.0,0.000378,7]
[422262556,1778773864000,-1000.0,0.000378,7]
[422262563,1778773864000,-1000.0,0.000378,7]
[422262569,1778773864000,-1000.0,0.000378,7]
[422262562,1778773864000,-1000.0,0.000378,7]
[422262550,1778773864000,-1000.0,0.000378,7]
[422262554,1778773864000,-1000.0,0.000378,7]
[422262555,1778773864000,-1000.0,0.000378,7]
[422262560,1778773864000,-1000.0,0.000378,7]
[422262559,1778773864000,-1000.0,0.000378,7]
[422262553,1778773864000,-1000.0,0.000378,7]
[422262513,1778773864000,-350.6739,0.000375,30]
[422262565,1778773864000,-1000.0,0.000378,7]
[422262567,1778773864000,-1000.0,0.000378,7]
[422262568,1778773864000,-1000.0,0.000378,7]
[422262566,1778773864000,-1000.0,0.000378,7]
[422262572,1778773864000,-1000.0,0.000378,7]
[422262571,1778773864000,-1000.0,0.000378,7]
[422262570,1778773864000,-1000.0,0.000378,7]
[422262564,1778773864000,-1000.0,0.000378,7]
[422262540,1778773864000,-550.0,0.00037685,2]
[422262557,1778773864000,-1000.0,0.000378,7]
[422262539,1778773864000,-2206.1741156,0.00037656,2]
[422262541,1778773864000,-550.0,0.00037685,2]